fUST/lending_fUST_20250616
["ID","MTS","AMOUNT","RATE_DAILY","PERIOD"]
[365987518,1750007445255,-1265.26,0.00021835,2]
[365987521,1750007445266,-1265.26,0.00021835,2]
[365987523,1750007445276,-1265.26,0.00021835,2]
[365987525,1750007445286,-1265.26,0.00021835,2]
[365987527,1750007445296,-1265.26,0.00021835,2]
[365987529,1750007445305,-1265.26,0.00021835,2]
[365987531,1750007445315,-1265.26,0.00021835,2]
[365987533,1750007445324,-1265.38,0.00021835,2]
[365987535,1750007445334,-1132.076331,0.00021835,2]
[365987537,1750007445343,-1132.076331,0.00021835,2]
[365987539,1750007445354,-151.0,0.00021835,2]
[365987541,1750007445363,-151.0,0.00021835,2]
[365987543,1750007445373,-1132.076331,0.00021843,2]
[365987545,1750007445383,-1132.07633466,0.00021843,2]
[365987547,1750007445393,-13888.56007377,0.000219,2]
[365987549,1750007445403,-380.34,0.000219,2]
[365987551,1750007445412,-151.0,0.000219,2]
[365987553,1750007445422,-151.0,0.000219,2]
[365987555,1750007445432,-1572.709829,0.000219,2]
[365987558,1750007445442,-1572.709829,0.000219,2]
[365987560,1750007445452,-151.0,0.000219,2]
[365987562,1750007445461,-151.0,0.000219,2]
[365987564,1750007445471,-151.0,0.000219,2]
[365987566,1750007445482,-465.215082,0.000219,2]
[365987568,1750007445491,-465.215082,0.000219,2]
[365987570,1750007445501,-335.315733,0.000219,2]
[365987572,1750007445510,-457.099486,0.000219,2]
[365987574,1750007445520,-457.099486,0.000219,2]
[365987576,1750007445529,-151.0,0.000219,2]
[365987578,1750007445539,-151.0,0.000219,2]
[365987580,1750007445548,-183.590893,0.000219,2]
[365987582,1750007445562,-183.590893,0.000219,2]
[365987584,1750007445572,-151.0,0.00021917,2]
[365987587,1750007445585,-151.0,0.00021917,2]
[365987589,1750007445595,-151.0,0.00021917,2]
[365987591,1750007445604,-151.0,0.00021917,2]
[365987593,1750007445614,-335.315733,0.00021917,2]
[365987595,1750007445624,-500.0,0.00021917,2]
[365987596,1750007445635,-500.0,0.00021917,2]
[365987598,1750007445644,-500.0,0.00021917,2]
[365987601,1750007445654,-500.0,0.00021917,2]
[365987603,1750007445663,-500.0,0.00021917,2]
[365987604,1750007445673,-500.0,0.00021917,2]
[365987607,1750007445686,-500.0,0.00021917,2]
[365987609,1750007445699,-500.0,0.00021917,2]
[365987611,1750007445709,-504.23576132,0.00021917,2]
[365987613,1750007445719,-457.099486,0.00021917,2]
[365987615,1750007445730,-457.099486,0.00021917,2]
[365987617,1750007445739,-151.0,0.00021917,2]
[365987619,1750007445750,-500.0,0.00021917,2]
[365987621,1750007445759,-460.0,0.00021917,2]
[365987623,1750007445769,-460.0,0.00021917,2]
[365987624,1750007445778,-497.61680295,0.00021917,2]
[365987627,1750007445789,-203.68112716,0.00021917,2]
[365987628,1750007445799,-500.0,0.00021917,2]
[365987631,1750007445811,-500.0,0.00021917,2]
[365987633,1750007445821,-500.0,0.00021917,2]
[365987635,1750007445831,-460.0,0.00021917,2]
[365987637,1750007445841,-460.0,0.00021917,2]
[365987638,1750007445852,-508.46705558,0.00021917,2]
[365987641,1750007445862,-153.0,0.00021918,2]
[365987643,1750007445872,-153.0,0.00021918,2]
[365987644,1750007445881,-153.0,0.00021918,2]
[365987647,1750007445891,-153.0,0.00021918,2]
[365987649,1750007445900,-153.0,0.00021918,2]
[365987651,1750007445912,-153.0,0.00021918,2]
[365987653,1750007445921,-153.0,0.00021918,2]
[365987655,1750007445932,-153.0,0.00021918,2]
[365987667,1750007446043,-153.0,0.00021918,2]
[365987669,1750007446053,-153.0,0.00021918,2]
[365987671,1750007446063,-153.0,0.00021918,2]
[365987673,1750007446072,-153.0,0.00021918,2]
[365987675,1750007446082,-153.0,0.00021918,2]
[365987677,1750007446091,-153.0,0.00021918,2]
[365987679,1750007446100,-153.0,0.00021918,2]
[365987681,1750007446110,-153.0,0.00021918,2]
[365987683,1750007446119,-153.0,0.00021918,2]
[365987686,1750007446129,-153.0,0.00021918,2]
[365987688,1750007446140,-153.0,0.00021918,2]
[365987690,1750007446150,-153.0,0.00021918,2]
[365987692,1750007446161,-153.0,0.00021918,2]
[365987693,1750007446170,-153.0,0.00021918,2]
[365987696,1750007446180,-153.0,0.00021918,2]
[365987697,1750007446189,-153.0,0.00021918,2]
[365987699,1750007446198,-153.0,0.00021918,2]
[365987701,1750007446208,-153.0,0.00021918,2]
[365987703,1750007446218,-153.0,0.00021918,2]
[365987705,1750007446227,-153.0,0.00021918,2]
[365987707,1750007446236,-153.0,0.00021918,2]
[365987709,1750007446246,-153.0,0.00021918,2]
[365987711,1750007446256,-153.0,0.00021918,2]
[365987713,1750007446265,-153.0,0.00021918,2]
[365987715,1750007446275,-153.0,0.00021918,2]
[365987717,1750007446284,-151.0,0.00021918,2]
[365987719,1750007446294,-151.0,0.00021918,2]
[365987722,1750007446304,-151.0,0.00021918,2]
[365987724,1750007446313,-151.0,0.00021918,2]
[365987725,1750007446323,-151.0,0.00021918,2]
[365987728,1750007446333,-151.0,0.00021918,2]
[365987729,1750007446342,-151.0,0.00021918,2]
[365987731,1750007446351,-151.0,0.00021918,2]
[365987733,1750007446360,-151.0,0.00021918,2]
[365987735,1750007446369,-293.599782,0.00021918,2]
[365987737,1750007446378,-151.0,0.00021918,7]
[365987739,1750007446387,-151.0,0.00021918,7]
[365987741,1750007446397,-151.0,0.00021918,7]
[365987743,1750007446406,-151.0,0.00021918,7]
[365987745,1750007446415,-151.0,0.00021918,7]
[365987747,1750007446424,-1572.709829,0.00021918,7]
[365987749,1750007446434,-1572.709829,0.00021918,7]
[365987751,1750007446444,-163.672411,0.00021918,7]
[365987754,1750007446454,-151.0,0.00021918,7]
[365987756,1750007446463,-163.672411,0.00021918,7]
[365987758,1750007446472,-151.0,0.00021918,7]
[365987760,1750007446481,-153.86388,0.00021918,7]
[365987762,1750007446490,-151.0,0.00021918,7]
[365987764,1750007446500,-151.0,0.00021918,7]
[365987765,1750007446509,-151.0,0.00021918,7]
[365987768,1750007446520,-465.215082,0.00021918,7]
[365987770,1750007446529,-465.215082,0.00021918,7]
[365987771,1750007446538,-335.315733,0.00021918,2]
[365987774,1750007446549,-457.099486,0.00021918,7]
[365987775,1750007446560,-457.099486,0.00021918,7]
[365987777,1750007446570,-151.0,0.00021918,7]
[365987779,1750007446579,-151.0,0.00021918,7]
[365987781,1750007446588,-183.590893,0.00021918,7]
[365987784,1750007446599,-183.590887,0.00021918,7]
[365987786,1750007446608,-500.0,0.00021918,2]
[365987788,1750007446617,-500.0,0.00021918,2]
[365987789,1750007446628,-500.0,0.00021918,2]
[365987791,1750007446638,-500.0,0.00021918,2]
[365987794,1750007446648,-500.0,0.00021918,2]
[365987796,1750007446658,-500.0,0.00021918,2]
[365987798,1750007446669,-500.0,0.00021918,2]
[365987800,1750007446679,-500.0,0.00021918,2]
[365987802,1750007446688,-500.0,0.00021918,2]
[365987804,1750007446697,-500.0,0.00021918,2]
[365987806,1750007446706,-500.0,0.00021918,2]
[365987808,1750007446716,-500.0,0.00021918,2]
[365987810,1750007446725,-500.0,0.00021918,2]
[365987812,1750007446735,-500.0,0.00021918,2]
[365987814,1750007446744,-500.0,0.00021918,2]
[365987816,1750007446753,-500.0,0.00021918,2]
[365987818,1750007446763,-500.0,0.00021918,2]
[365987819,1750007446772,-500.0,0.00021918,2]
[365987822,1750007446782,-500.0,0.00021918,2]
[365987824,1750007446791,-415.03988424,0.00021918,2]
[365987826,1750007446801,-500.0,0.00021918,2]
[365987828,1750007446810,-500.0,0.00021918,2]
[365987830,1750007446820,-500.0,0.00021918,2]
[365987832,1750007446829,-500.0,0.00021918,2]
[365987834,1750007446839,-500.0,0.00021918,2]
[365987836,1750007446848,-500.0,0.00021918,2]
[365987838,1750007446858,-500.0,0.00021918,2]
[365987840,1750007446867,-1110.11221585,0.00021969,6]
[365987842,1750007446876,-500.0,0.00021973,2]
[365987844,1750007446886,-500.0,0.00021973,2]
[365987846,1750007446895,-304.26549004,0.00021973,2]
[365987848,1750007446905,-501.7245671,0.00021973,2]
[365987850,1750007446914,-507.4259494,0.00021973,2]
[365987852,1750007446923,-504.43395862,0.00021973,2]
[365987854,1750007446933,-506.87102913,0.00021973,2]
[365987856,1750007446943,-500.0,0.00021973,2]
[365987858,1750007446952,-160.63259287,0.00021973,2]
[365987860,1750007446961,-600.0,0.00021973,2]
[365987862,1750007446971,-500.0,0.00021973,2]
[365987864,1750007446980,-500.0,0.00021973,2]
[365987866,1750007446989,-500.0,0.00021973,2]
[365987868,1750007447001,-500.0,0.00021973,2]
[365987870,1750007447010,-500.0,0.00021973,2]
[365987872,1750007447019,-12612.59688001,0.0002199,2]
[365987874,1750007447028,-151.0,0.0002199,7]
[365987876,1750007447038,-151.0,0.0002199,7]
[365987878,1750007447048,-151.0,0.0002199,7]
[365987880,1750007447058,-1572.709829,0.0002199,7]
[365987882,1750007447068,-1572.709829,0.0002199,7]
[365987884,1750007447078,-465.215082,0.0002199,7]
[365987886,1750007447088,-465.215082,0.0002199,7]
[365987888,1750007447098,-335.315733,0.0002199,2]
[365987890,1750007447108,-335.315733,0.0002199,2]
[365987892,1750007447118,-457.099486,0.0002199,7]
[365987894,1750007447129,-457.099486,0.0002199,7]
[365987896,1750007447139,-151.0,0.0002199,7]
[365987898,1750007447149,-2816.68661021,0.00021996,2]
[365987900,1750007447158,-160.0,0.00022,5]
[365987902,1750007447167,-395.20413537,0.00022,2]
[365987904,1750007447177,-96842.58004042,0.00022,2]
[365987970,1750007447804,-58.83857773,0.00022,2]
[365988116,1750007449369,-39388.36684233,0.00022,2]
[365988118,1750007449379,-151.0,0.00022,7]
[365988120,1750007449389,-151.0,0.00022,7]
[365988122,1750007449398,-151.0,0.00022,7]
[365988124,1750007449408,-151.0,0.00022,7]
[365988126,1750007449417,-151.0,0.00022,7]
[365988128,1750007449426,-1131.02,0.00022,7]
[365988130,1750007449437,-151.0,0.00022,7]
[365988132,1750007449448,-151.0,0.00022,7]
[365988134,1750007449457,-1572.709829,0.00022,7]
[365988136,1750007449467,-1572.709829,0.00022,7]
[365988138,1750007449476,-163.672411,0.00022,7]
[365988140,1750007449485,-151.0,0.00022,7]
[365988142,1750007449494,-163.672411,0.00022,7]
[365988144,1750007449503,-151.0,0.00022,7]
[365988146,1750007449512,-151.0,0.00022,7]
[365988148,1750007449521,-151.0,0.00022,7]
[365988150,1750007449531,-151.0,0.00022,7]
[365988152,1750007449540,-151.0,0.00022,7]
[365988154,1750007449549,-151.0,0.00022,7]
[365988156,1750007449564,-151.0,0.00022,7]
[365988158,1750007449574,-151.0,0.00022,7]
[365988160,1750007449584,-465.215082,0.00022,7]
[365988163,1750007449595,-465.215082,0.00022,7]
[365988164,1750007449605,-465.215082,0.00022,7]
[365988166,1750007449615,-465.215082,0.00022,7]
[365988168,1750007449625,-335.315733,0.00022,2]
[365988170,1750007449636,-335.315735,0.00022,2]
[365988172,1750007449646,-457.099486,0.00022,7]
[365988174,1750007449656,-457.099476,0.00022,7]
[365988176,1750007449665,-201.127892,0.00022,7]
[365988178,1750007449674,-186.0,0.00022,2]
[365988180,1750007449684,-172.0,0.00022,2]
[365988182,1750007449693,-164.0,0.00022,2]
[365988184,1750007449701,-151.0,0.00022018,7]
[365988186,1750007449711,-1572.709829,0.00022018,7]
[365988188,1750007449720,-1572.709829,0.00022018,7]
[365988190,1750007449730,-151.0,0.00022018,7]
[365988192,1750007449739,-202.218538,0.00022018,7]
[365988194,1750007449748,-465.215082,0.00022018,7]
[365988196,1750007449757,-465.215082,0.00022018,7]
[365988197,1750007449767,-730.4125468,0.00022082,2]
[365988199,1750007449776,-151.0,0.000221,10]
[365988201,1750007449786,-1110.11221585,0.00022141,6]
[365988203,1750007449795,-268.368846,0.00022142,7]
[365988205,1750007449804,-274.204699,0.00022142,7]
[365988207,1750007449813,-460.0,0.00022191,2]
[365988209,1750007449823,-460.0,0.00022191,2]
[365988211,1750007449832,-500.0,0.00022191,5]
[365988213,1750007449841,-460.0,0.00022191,2]
[365988215,1750007449851,-460.0,0.00022191,2]
[365988217,1750007449860,-199.76697731,0.000222,69]
[365988219,1750007449870,-788.72,0.0002223,4]
[365988221,1750007449880,-600.0,0.0002226,2]
[365988223,1750007449889,-151.0,0.000223,6]
[365988225,1750007449899,-1110.11221585,0.00022314,7]
[365988227,1750007449908,-788.72,0.0002233,4]
[365988229,1750007449918,-7620.39078176,0.00022374,2]
[365988231,1750007449928,-169904.25200176,0.000224,2]
[365988233,1750007449938,-151.0,0.00022421,7]
[365988235,1750007449947,-788.72,0.0002243,3]
[365988237,1750007449957,-54671.0,0.0002243,4]
[365988239,1750007449967,-151.0,0.0002243,7]
[365988241,1750007449977,-151.0,0.0002243,7]
[365988243,1750007449986,-151.0,0.0002243,7]
[365988245,1750007449995,-151.0,0.0002243,7]
[365988247,1750007450005,-1572.709829,0.0002243,7]
[365988249,1750007450016,-1572.709829,0.0002243,7]
[365988251,1750007450025,-163.672411,0.0002243,7]
[365988253,1750007450034,-163.672411,0.0002243,7]
[365988255,1750007450043,-151.0,0.0002243,7]
[365988257,1750007450053,-465.215082,0.0002243,7]
[365988259,1750007450063,-465.215082,0.0002243,7]
[365988261,1750007450072,-500.0,0.00022465,2]
[365988263,1750007450081,-269.273758,0.00022465,2]
[365988265,1750007450091,-460.0,0.00022465,2]
[365988267,1750007450102,-460.0,0.00022465,2]
[365988269,1750007450112,-483.49606677,0.00022465,2]
[365988271,1750007450122,-1110.11221585,0.00022486,7]
[365988273,1750007450132,-707.77179463,0.000225,2]
[365988275,1750007450142,-1000.0,0.00022521,2]
[365988277,1750007450151,-1000.0,0.00022521,2]
[365988279,1750007450161,-1000.0,0.00022521,2]
[365988281,1750007450171,-1200.0,0.00022521,2]
[365988283,1750007450180,-1000.0,0.00022521,2]
[365988285,1750007450190,-500.0,0.00022521,2]
[365988287,1750007450200,-788.72,0.0002253,3]
[365988289,1750007450211,-151.0,0.00022565,7]
[365988291,1750007450223,-151.0,0.00022565,7]
[365988293,1750007450232,-151.0,0.00022565,7]
[365988295,1750007450242,-151.0,0.00022565,7]
[365988297,1750007450253,-119542.39,0.000226,7]
[365988299,1750007450263,-151.0,0.000226,7]
[365988301,1750007450273,-192.438748,0.000226,7]
[365988303,1750007450283,-151.0,0.000226,7]
[365988305,1750007450293,-151.0,0.000226,7]
[365988307,1750007450302,-151.0,0.000226,7]
[365988309,1750007450312,-151.0,0.000226,7]
[365988311,1750007450322,-152.485391,0.000226,7]
[365988313,1750007450331,-151.0,0.000226,7]
[365988315,1750007450341,-151.0,0.000226,7]
[365988318,1750007450351,-151.0,0.000226,7]
[365988320,1750007450362,-151.0,0.000226,7]
[365988322,1750007450371,-151.0,0.000226,7]
[365988324,1750007450381,-151.0,0.000226,7]
[365988326,1750007450390,-151.0,0.000226,7]
[365988327,1750007450399,-1572.709829,0.000226,7]
[365988329,1750007450408,-944.97360956,0.000226,7]
[365988332,1750007450424,-627.73621944,0.000226,7]
[365988334,1750007450432,-163.672411,0.000226,7]
[365988336,1750007450442,-163.672411,0.000226,7]
[365988338,1750007450451,-465.215082,0.000226,7]
[365988340,1750007450460,-465.215091,0.000226,7]
[365988342,1750007450470,-172.303415,0.00022603,2]
[365988344,1750007450479,-405.0,0.00022626,2]
[365988346,1750007450488,-406.0,0.00022626,2]
[365988348,1750007450498,-788.72,0.0002263,7]
[365988350,1750007450507,-1110.11221585,0.00022659,7]
[365988352,1750007450517,-788.72,0.0002273,7]
[365988354,1750007450526,-460.0,0.00022739,2]
[365988356,1750007450536,-460.0,0.00022739,2]
[365988358,1750007450545,-800.0,0.00022755,2]
[365988360,1750007450558,-800.0,0.00022755,2]
[365988362,1750007450568,-587.0,0.00022775,2]
[365988364,1750007450577,-800.0,0.0002278,2]
[365988365,1750007450586,-772.23959303,0.00022799,2]
[365988367,1750007450596,-4177.54,0.00022811,2]
[365988370,1750007450607,-788.72,0.0002283,4]
[365988372,1750007450616,-151.0,0.0002283,7]
[365988374,1750007450627,-1572.709829,0.0002283,7]
[365988376,1750007450637,-1572.709829,0.0002283,7]
[365988378,1750007450646,-800.0,0.0002283,2]
[365988380,1750007450656,-1110.11221585,0.00022831,8]
[365988382,1750007450665,-800.0,0.0002289,2]
[365988384,1750007450674,-380.34,0.000229,7]
[365988386,1750007450684,-151.0,0.000229,7]
[365988388,1750007450694,-788.72,0.0002293,3]
[365988390,1750007450704,-800.0,0.00022931,2]
[365988392,1750007450713,-800.0,0.00022934,2]
[365988394,1750007450723,-52529.93230164,0.00022988,2]
[365988396,1750007450734,-166.356788,0.00022988,7]
[365988398,1750007450744,-151.0,0.00022988,7]
[365988400,1750007450754,-151.0,0.00022988,7]
[365988402,1750007450763,-151.0,0.00022988,7]
[365988404,1750007450773,-1572.709829,0.00022988,7]
[365988406,1750007450783,-1572.709829,0.00022988,7]
[365988408,1750007450792,-163.672411,0.00022988,7]
[365988410,1750007450802,-163.672411,0.00022988,7]
[365988412,1750007450812,-81843.74115584,0.00023,2]
[365988414,1750007450821,-248.80623988,0.00023,2]
[365988416,1750007450830,-1954.58453379,0.00023,2]
[365988418,1750007450839,-44195.02863431,0.00023,7]
[365988420,1750007450849,-6022.6412642,0.00023,3]
[365988422,1750007450858,-125058.87671549,0.00023,2]
[365988425,1750007450882,-2559.29036764,0.00023,2]
[365988427,1750007450892,-10043.38789823,0.00023,2]
[365988429,1750007450902,-23403.9287886,0.00023,20]
[365988431,1750007450911,-6767.0,0.00023,2]
[365988433,1750007450920,-42017.12,0.00023,2]
[365988435,1750007450930,-500.0,0.00023,2]
[365988437,1750007450939,-626.32047267,0.00023,2]
[365988439,1750007450949,-200.0,0.00023,3]
[365988441,1750007450959,-1631.84600795,0.00023,3]
[365988443,1750007450970,-715.3970846,0.00023,3]
[365988445,1750007450983,-1308.25690745,0.00023,3]
[365988446,1750007450992,-151.0,0.00023,7]
[365988447,1750007451002,-151.0,0.00023,7]
[365988448,1750007451012,-151.0,0.00023,7]
[365988449,1750007451021,-154.321202,0.00023,7]
[365988450,1750007451030,-151.0,0.00023,7]
[365988451,1750007451040,-152.62958,0.00023,7]
[365988452,1750007451049,-151.0,0.00023,7]
[365988453,1750007451058,-155.734171,0.00023,7]
[365988454,1750007451067,-151.0,0.00023,7]
[365988455,1750007451076,-151.0,0.00023,7]
[365988456,1750007451085,-151.0,0.00023,7]
[365988457,1750007451095,-151.0,0.00023,7]
[365988458,1750007451104,-151.0,0.00023,7]
[365988459,1750007451115,-151.0,0.00023,7]
[365988460,1750007451125,-151.0,0.00023,7]
[365988461,1750007451133,-151.0,0.00023,7]
[365988462,1750007451143,-151.0,0.00023,7]
[365988463,1750007451152,-151.0,0.00023,7]
[365988464,1750007451161,-151.0,0.00023,7]
[365988465,1750007451170,-151.0,0.00023,7]
[365988466,1750007451180,-151.0,0.00023,7]
[365988467,1750007451189,-152.907584,0.00023,7]
[365988468,1750007451199,-151.0,0.00023,7]
[365988469,1750007451208,-151.0,0.00023,7]
[365988470,1750007451217,-151.0,0.00023,7]
[365988471,1750007451226,-151.0,0.00023,7]
[365988472,1750007451236,-241.130764,0.00023,7]
[365988473,1750007451245,-1131.02,0.00023,7]
[365988474,1750007451254,-250.4721,0.00023,7]
[365988475,1750007451264,-1572.709829,0.00023,7]
[365988476,1750007451273,-1572.709824,0.00023,7]
[365988477,1750007451282,-163.672411,0.00023,7]
[365988478,1750007451291,-163.672411,0.00023,7]
[365988479,1750007451300,-163.672411,0.00023,7]
[365988480,1750007451309,-163.672414,0.00023,7]
[365988481,1750007451319,-835.55256958,0.00023,3]
[365988482,1750007451328,-160.0,0.00023,3]
[365988483,1750007451338,-229.86375354,0.00023,3]
[365988485,1750007451347,-424.47602138,0.00023,3]
[365988487,1750007451356,-1110.11221585,0.00023003,8]
[365988488,1750007451365,-160.0,0.00023012,2]
[365988490,1750007451375,-500.0,0.00023013,2]
[365988492,1750007451384,-460.0,0.00023013,2]
[365988494,1750007451393,-460.0,0.00023013,2]
[365988496,1750007451402,-151.73321023,0.00023014,2]
[365988498,1750007451412,-165.0,0.00023014,7]
[365988501,1750007451423,-788.72,0.0002303,4]
[365988503,1750007451433,-1500.0,0.00023068,2]
[365988504,1750007451443,-1800.0,0.00023068,2]
[365988506,1750007451452,-1500.0,0.00023068,2]
[365988508,1750007451461,-1500.0,0.00023068,2]
[365988511,1750007451471,-168.0,0.00023097,2]
[365988513,1750007451482,-223.0315306,0.000231,2]
[365988515,1750007451491,-788.72,0.0002313,5]
[365988517,1750007451500,-10245.76926066,0.00023151,2]
[365988518,1750007451510,-236.074,0.00023153,2]
[365988520,1750007451519,-152.686,0.00023153,2]
[365988522,1750007451528,-1110.11221585,0.00023176,8]
[365988524,1750007451538,-2000.0,0.000232,3]
[365988536,1750007451649,-3000.0,0.000232,2]
[365988539,1750007451660,-151.73321023,0.00023205,2]
[365988540,1750007451669,-3000.0,0.0002321,2]
[365988542,1750007451678,-3000.0,0.0002322,2]
[365988544,1750007451688,-788.72,0.0002323,6]
[365988546,1750007451697,-3000.0,0.0002323,2]
[365988548,1750007451707,-3000.0,0.0002324,2]
[365988550,1750007451716,-3000.0,0.0002325,2]
[365988552,1750007451726,-3000.0,0.0002326,2]
[365988554,1750007451735,-3000.0,0.0002327,2]
[365988556,1750007451744,-3000.0,0.0002328,2]
[365988558,1750007451753,-597.27711474,0.00023284,3]
[365988560,1750007451763,-185.0,0.00023285,2]
[365988562,1750007451772,-530.56645063,0.00023287,2]
[365988564,1750007451781,-460.0,0.00023287,2]
[365988566,1750007451790,-3000.0,0.0002329,2]
[365988568,1750007451800,-3000.0,0.000233,2]
[365988570,1750007451809,-835.55256958,0.000233,3]
[365988572,1750007451819,-168.0,0.00023301,2]
[365988574,1750007451828,-964.514,0.00023308,2]
[365988576,1750007451840,-653.0,0.00023308,2]
[365988578,1750007451849,-2160.0,0.00023308,2]
[365988580,1750007451859,-3000.0,0.0002331,2]
[365988582,1750007451868,-3000.0,0.0002332,2]
[365988584,1750007451878,-788.72,0.0002333,5]
[365988587,1750007451887,-3000.0,0.0002333,2]
[365988588,1750007451897,-3000.0,0.0002334,2]
[365988590,1750007451905,-1110.11221585,0.00023348,9]
[365988592,1750007451914,-168.0,0.00023349,2]
[365988594,1750007451924,-200.0,0.00023349,2]
[365988596,1750007451933,-200.0,0.00023349,2]
[365988598,1750007451942,-280.71795802,0.00023349,2]
[365988600,1750007451952,-80104.21347528,0.0002335,2]
[365988602,1750007451962,-152.86314,0.0002335,7]
[365988604,1750007451972,-151.0,0.0002335,7]
[365988606,1750007451982,-163.25188,0.0002335,7]
[365988608,1750007451992,-151.0,0.0002335,7]
[365988610,1750007452001,-3000.0,0.0002335,2]
[365988612,1750007452010,-600.0,0.00023356,2]
[365988614,1750007452020,-3000.0,0.0002336,2]
[365988616,1750007452030,-151.73321023,0.0002337,2]
[365988619,1750007452039,-3000.0,0.0002337,2]
[365988620,1750007452048,-3000.0,0.0002338,2]
[365988622,1750007452058,-3000.0,0.0002339,2]
[365988624,1750007452067,-4021.46614374,0.0002339,2]
[365988626,1750007452077,-160.0,0.000234,3]
[365988628,1750007452086,-2000.0,0.000234,3]
[365988630,1750007452096,-3000.0,0.000234,2]
[365988632,1750007452106,-3000.0,0.0002341,2]
[365988634,1750007452115,-3000.0,0.0002342,2]
[365988637,1750007452125,-788.72,0.0002343,2]
[365988638,1750007452133,-3000.0,0.0002343,2]
[365988641,1750007452143,-3000.0,0.0002344,2]
[365988642,1750007452152,-3000.0,0.0002345,2]
[365988645,1750007452163,-3000.0,0.0002346,2]
[365988646,1750007452172,-3000.0,0.0002347,2]
[365988648,1750007452182,-3000.0,0.0002348,2]
[365988651,1750007452192,-823.0,0.00023486,2]
[365988653,1750007452203,-3000.0,0.0002349,2]
[365988655,1750007452213,-1000.0,0.00023499,6]
[365988657,1750007452222,-30187.70491387,0.000235,2]
[365993381,1750007542367,960.5228081,0.00018985,2]
[365993389,1750007794993,-222.04152509,0.00018082,2]
[365993390,1750007800299,24900.0,0.00017109,2]
[365993395,1750007971994,-98.68272251,0.00018082,2]
[365993396,1750007972017,-1000.0,0.00018087,2]
[365993397,1750007972038,-164.49226162,0.00019074,2]
[365993398,1750007972062,-1000.0,0.00019174,2]
[365993399,1750007972084,-300.0,0.00019176,2]
[365993400,1750007972106,-300.0,0.00019176,2]
[365993401,1750007972132,-1047.82501587,0.00019177,2]
[365993402,1750007972206,295.542967,0.00013699,2]
[365993405,1750008003770,-378.23402232,0.00018,2]
[365993471,1750008438128,-324.73530089,0.00018,2]
[365993472,1750008438802,-222.04152509,0.00018,2]
[365993474,1750008447164,-187.33549548,0.00018,2]
[365993475,1750008449292,-150.26498568,0.00018,2]
[365993481,1750008473984,-321.76597768,0.00018,2]
[365993500,1750008545099,-2326.62269286,0.00018,2]
[365993501,1750008545120,-496.41018663,0.00018,2]
[365993502,1750008549216,-363.235566,0.00018225,2]
[365993503,1750008549237,-309.67854953,0.000189,2]
[365993504,1750008549258,-381.33398496,0.00018923,2]
[365993507,1750008562074,-481.69605786,0.00019078,2]
[365993508,1750008562095,-300.0,0.00019172,2]
[365993509,1750008562114,-300.0,0.00019173,2]
[365993510,1750008562134,-479.93704196,0.00019173,2]
[365993511,1750008562156,-500.0,0.00019173,2]